bitfinex/quotes_BTCUSD_20241205
["timestamp","ask_amount","ask_price","bid_price","bid_amount"]
[1733442176309,0.10503154,96397.0,96367.0,0.001]
[1733442176547,0.00072402,96396.0,96367.0,0.001]
[1733442176771,0.10503154,96395.0,96367.0,0.001]
[1733442176977,0.00072402,96394.0,96367.0,0.001]
[1733442177258,0.5346,96393.0,96368.0,0.023]
[1733442177475,0.00072402,96392.0,96368.0,0.023]
[1733442177939,0.00072402,96392.0,96369.0,0.10503154]
[1733442178174,0.00072402,96392.0,96370.0,0.023]
[1733442178431,0.00072402,96392.0,96372.0,0.023]
[1733442178652,0.00072402,96392.0,96374.0,0.023]
[1733442178864,0.00072402,96392.0,96376.0,0.023]
[1733442178865,0.5346,96391.0,96376.0,0.023]
[1733442179094,0.5346,96409.0,96378.0,0.023]
[1733442179338,0.5346,96407.0,96380.0,0.023]
[1733442179559,0.0017296,96410.0,96380.0,0.023]
[1733442179560,0.5346,96405.0,96382.0,0.023]
[1733442179773,0.5346,96405.0,96384.0,0.023]
[1733442179774,0.00072402,96404.0,96384.0,0.023]
[1733442180013,0.15,96447.0,96384.0,0.023]
[1733442180014,0.5346,96464.0,96398.0,0.023]
[1733442180259,0.5346,96464.0,96391.0,0.15]
[1733442180260,0.64035556,96463.0,96400.0,0.023]
[1733442180487,0.64035556,96463.0,96401.0,0.26672354]
[1733442180716,0.1088,96462.0,96402.0,0.184692]
[1733442181008,0.64035556,96463.0,96404.0,0.023]
[1733442181009,0.21383154,96458.0,96404.0,0.023]
[1733442181247,0.10503154,96456.0,96405.0,0.10503154]
[1733442181503,0.10503154,96456.0,96387.0,0.05198136]
[1733442181504,0.10503154,96451.0,96398.0,0.001]
[1733442181733,0.00072402,96450.0,96399.0,0.10503154]
[1733442181957,0.00072402,96450.0,96402.0,0.001]
[1733442181958,0.10503154,96449.0,96402.0,0.001]
[1733442182187,0.00072402,96448.0,96402.0,0.10603154]
[1733442182423,0.00072402,96448.0,96403.0,0.023]
[1733442182424,0.10503154,96447.0,96403.0,0.023]
[1733442182652,0.10503154,96431.0,96402.0,0.001]
[1733442182853,0.5346,96443.0,96402.0,0.001]
[1733442182854,0.10575556,96430.0,96402.0,0.001]
[1733442182981,0.0829,96422.0,96369.0,0.0796]
[1733442183186,0.0829,96422.0,96342.0,0.15]
[1733442183187,0.5346,96420.0,96402.0,0.001]
[1733442183397,0.5346,96420.0,96352.0,0.0452]
[1733442183398,0.04952402,96419.0,96398.0,0.001]
[1733442183601,0.10503154,96415.0,96398.0,0.001]
[1733442183801,0.10503154,96415.0,96355.0,0.00103762]
[1733442183802,0.00072402,96414.0,96402.0,0.001]
[1733442183991,0.10503154,96413.0,96402.0,0.001]
[1733442184193,0.10503154,96413.0,96356.0,0.10503154]
[1733442184194,0.5346,96411.0,96382.0,0.001]
[1733442184390,0.10503154,96402.0,96382.0,0.001]
[1733442184666,0.00072402,96401.0,96382.0,0.001]
[1733442184867,0.0488,96419.0,96354.0,0.0796]
[1733442184868,0.5346,96399.0,96355.0,0.00103776]
[1733442185018,0.5346,96397.0,96361.0,0.10503154]
[1733442185232,0.5346,96397.0,96354.0,0.0796]
[1733442185233,0.5346,96397.0,96367.0,0.10503154]
[1733442185435,0.5346,96435.0,96378.0,0.10503154]
[1733442185602,0.5346,96435.0,96379.0,0.423499]
[1733442185603,0.13837358,96434.0,96379.0,0.423499]
[1733442185800,0.10632814,96434.0,96380.0,0.10586345]
[1733442186051,0.10503154,96429.0,96382.0,0.023]
[1733442186253,0.10503154,96429.0,96380.0,0.10503154]
[1733442186254,0.5346,96427.0,96402.0,0.001]
[1733442186464,0.10632837,96426.0,96402.0,0.001]
[1733442186748,5.667,96411.0,96402.0,0.001]
[1733442186969,0.10632845,96410.0,96400.0,0.0008644]
[1733442187134,0.10503154,96406.0,96400.0,0.0008644]
[1733442187320,0.10503154,96406.0,96402.0,0.001]
[1733442187321,0.05009714,96405.0,96402.0,0.001]
[1733442187508,0.05009714,96405.0,96400.0,0.00082751]
[1733442187509,0.10503154,96404.0,96400.0,0.00082751]
[1733442187859,0.10503154,96401.0,96400.0,0.00082751]
[1733442188057,0.53377249,96393.0,96326.0,0.0452]
[1733442188256,0.15,96394.0,96326.0,0.04603324]
[1733442188257,0.53377249,96383.0,96326.0,0.04603324]
[1733442188486,0.10632898,96382.0,96327.0,0.00083331]
[1733442188692,0.10632898,96382.0,96323.0,0.00083331]
[1733442188693,0.10503154,96375.0,96323.0,0.00083331]
[1733442188840,0.53377249,96383.0,96322.0,0.0940492]
[1733442188841,0.10503154,96361.0,96322.0,0.0144492]
[1733442189016,0.00129774,96360.0,96322.0,0.0144492]
[1733442189221,0.10503154,96359.0,96322.0,0.0144492]
[1733442189421,0.00129774,96358.0,96322.0,0.0144492]
[1733442189632,0.10503154,96357.0,96322.0,0.0144492]
[1733442189869,0.53290769,96349.0,96322.0,0.0144492]
[1733442190045,0.10632939,96348.0,96322.0,0.0144492]
[1733442190248,0.10503154,96341.0,96322.0,0.0144492]
[1733442190449,0.00129793,96340.0,96322.0,0.0144492]
[1733442190651,0.10503154,96339.0,96322.0,0.0144492]
[1733442190856,0.0829,96346.0,96322.0,0.0144492]
[1733442190857,0.10503154,96331.0,96322.0,0.0144492]
[1733442191099,0.10503154,96331.0,96322.0,0.0154492]
[1733442191292,0.0829,96346.0,96322.0,0.0154492]
[1733442191293,0.53420565,96330.0,96322.0,0.0154492]
[1733442191494,0.53420565,96330.0,96322.0,0.0164492]
[1733442192106,0.53290769,96330.0,96322.0,0.0164492]
[1733442192313,0.00129775,96329.0,96322.0,0.0164492]
[1733442192729,0.10503154,96328.0,96322.0,0.0154492]
[1733442192903,0.0012979,96327.0,96322.0,0.0164492]
[1733442193084,0.10632949,96326.0,96322.0,0.0154492]
[1733442193288,0.10632949,96326.0,96322.0,0.0164492]
[1733442193614,0.10632949,96326.0,96322.0,0.0151492]
[1733442193615,0.00129795,96326.0,96322.0,0.0151492]
[1733442193777,0.00129788,96329.0,96322.0,0.0151492]
[1733442193946,0.00129789,96328.0,96322.0,0.0151492]
[1733442194125,0.00129789,96328.0,96322.0,0.1651492]
[1733442194328,0.00129789,96328.0,96322.0,0.1641492]
[1733442194532,0.53290769,96330.0,96322.0,0.1641492]
[1733442194533,0.53290769,96330.0,96322.0,0.1651492]
[1733442194817,0.53290769,96330.0,96322.0,0.1661492]
[1733442195026,0.00129769,96329.0,96322.0,0.1661492]
[1733442195234,0.53290769,96329.0,96322.0,0.1661492]
[1733442195974,0.36589429,96315.0,96310.0,0.0008646]
[1733442196204,0.36589429,96313.0,96310.0,0.0008646]
[1733442196407,0.36589429,96313.0,96310.0,0.01046468]
[1733442196616,0.00129784,96312.0,96310.0,0.0008646]
[1733442197031,0.36589429,96313.0,96310.0,0.0008646]
[1733442197225,0.36589429,96313.0,96310.0,0.0018646]
[1733442197347,0.36589429,96313.0,96310.0,0.0008646]
[1733442197557,0.36589429,96313.0,96312.0,0.023]
[1733442197776,0.048,96365.0,96312.0,0.10503154]
[1733442197983,0.048,96365.0,96310.0,0.0018646]
[1733442197984,0.10632919,96364.0,96313.0,0.10586547]
[1733442198188,0.10632919,96364.0,96313.0,0.10503154]
[1733442199057,0.5346,96363.0,96314.0,0.24883896]
[1733442199284,0.5346,96363.0,96315.0,0.10503154]
[1733442199285,0.00129755,96362.0,96315.0,0.10503154]
[1733442199508,0.10503154,96361.0,96316.0,0.00083371]
[1733442199714,0.00129748,96360.0,96318.0,0.023]
[1733442199923,0.10632907,96359.0,96320.0,0.023]
[1733442200126,0.10632907,96359.0,96321.0,0.40897654]
[1733442200368,0.10632907,96359.0,96322.0,0.15171]
[1733442200577,0.10632907,96359.0,96323.0,0.10503154]
[1733442201192,0.5346,96358.0,96323.0,0.10503154]
[1733442201387,0.00129753,96357.0,96323.0,0.10503154]
[1733442201760,0.5346,96358.0,96324.0,0.59491277]
[1733442201960,0.5346,96358.0,96326.0,0.023]
[1733442202164,0.5346,96358.0,96321.0,0.001]
[1733442202165,0.5346,96358.0,96328.0,0.023]
[1733442202540,5.0,96364.0,96322.0,0.15]
[1733442202541,0.5346,96356.0,96330.0,0.023]
[1733442202744,0.00129731,96357.0,96318.0,0.0473]
[1733442202745,0.5346,96363.0,96335.0,0.10503154]
[1733442202939,0.5346,96363.0,96336.0,0.30394606]
[1733442203187,0.5346,96363.0,96338.0,0.023]
[1733442203397,0.5346,96363.0,96340.0,0.023]
[1733442203606,0.00129718,96362.0,96341.0,0.10503154]
[1733442204194,0.5346,96361.0,96341.0,0.10503154]
[1733442204365,0.00129735,96360.0,96341.0,0.10503154]
[1733442204564,0.00129735,96360.0,96322.0,0.00083335]
[1733442204565,0.63963154,96359.0,96322.0,0.00083335]
[1733442204769,0.00129754,96358.0,96323.0,0.10586531]
[1733442205182,0.00129754,96358.0,96324.0,0.3562]
[1733442205515,0.5346,96359.0,96332.0,0.10503154]
[1733442205722,0.5346,96359.0,96335.0,0.10503154]
[1733442206022,0.5346,96359.0,96309.0,0.0228376]
[1733442206023,0.5346,96359.0,96343.0,0.10503154]
[1733442206275,0.5346,96359.0,96344.0,0.86873801]
[1733442206453,0.5346,96359.0,96346.0,0.023]
[1733442206786,5.0,96364.0,96348.0,0.023]
[1733442206986,5.0,96364.0,96353.0,0.023]
[1733442207211,5.0,96364.0,96355.0,0.023]
[1733442207423,5.0,96364.0,96357.0,0.023]
[1733442207628,5.0,96364.0,96359.0,0.023]
[1733442207829,5.0,96364.0,96360.0,0.62357354]
[1733442207943,5.0,96364.0,96361.0,0.561542]
[1733442208149,5.0,96364.0,96362.0,0.62357354]
[1733442208353,4.43351723,96364.0,96363.0,0.688081]
[1733442208602,4.43351723,96364.0,96363.0,0.79311254]
[1733442208838,4.43351723,96364.0,96346.0,0.00996956]
[1733442209016,4.43351723,96364.0,96347.0,0.10503154]
[1733442209224,4.43351723,96364.0,96347.0,0.26536554]
[1733442209424,4.43351723,96364.0,96348.0,0.148758]
[1733442209625,4.43351723,96364.0,96349.0,0.10503154]
[1733442209893,4.43351723,96364.0,96350.0,0.316459]
[1733442210116,4.43351723,96364.0,96351.0,0.12803154]
[1733442210325,4.43351723,96364.0,96351.0,0.53538954]
[1733442210538,4.43351723,96364.0,96352.0,0.407358]
[1733442210763,4.43351723,96364.0,96353.0,0.10503154]
[1733442210992,4.43351723,96364.0,96354.0,0.407138]
[1733442211232,4.43351723,96364.0,96355.0,0.12803154]
[1733442211440,4.43351723,96364.0,96356.0,1.402846]
[1733442211679,4.43351723,96364.0,96357.0,1.50744454]
[1733442211902,4.43351723,96364.0,96360.0,0.10503154]
[1733442212127,4.37083343,96364.0,96363.0,0.023]
[1733442212355,4.37083343,96364.0,96363.0,0.97508354]
[1733442212613,4.37083343,96364.0,96363.0,0.66568954]
[1733442214356,3.48653326,96364.0,96363.0,0.66568954]
[1733442214573,3.07238143,96364.0,96363.0,0.66568954]
[1733442214989,2.6582306,96364.0,96363.0,0.12803154]
[1733442215439,1.82995479,96364.0,96363.0,0.12803154]
[1733442215652,1.41580488,96364.0,96363.0,0.12803154]
[1733442215852,1.41580488,96364.0,96363.0,0.10503154]
[1733442216273,1.95040488,96364.0,96348.0,0.0008327]
[1733442216486,1.95040488,96364.0,96328.0,0.00083347]
[1733442216487,0.53589738,96363.0,96328.0,0.00083347]
[1733442216716,0.53589738,96363.0,96329.0,0.26517801]
[1733442216922,0.53589738,96363.0,96330.0,0.660099]
[1733442217138,0.53589738,96363.0,96311.0,0.09851979]
[1733442217139,0.53589738,96363.0,96331.0,0.10586501]
[1733442217365,0.53589738,96363.0,96331.0,0.10503154]
[1733442218026,0.53589738,96363.0,96332.0,0.176045]
[1733442218236,0.53589738,96363.0,96333.0,0.10503154]
[1733442218440,0.53589738,96363.0,96334.0,1.301144]
[1733442218648,0.53589738,96363.0,96335.0,0.10503154]
[1733442219565,0.53589738,96363.0,96336.0,0.00083347]
[1733442219796,0.53589738,96363.0,96337.0,0.10503154]
[1733442219993,0.53589738,96363.0,96337.0,0.39421754]
[1733442220167,0.53589738,96363.0,96337.0,0.10503154]
[1733442220471,0.53589738,96363.0,96338.0,0.175603]
[1733442220679,0.53589738,96363.0,96339.0,0.10503154]
[1733442220893,0.53589738,96363.0,96340.0,0.326492]
[1733442221137,0.53589738,96363.0,96326.0,0.00309749]
[1733442221351,0.15,96360.0,96327.0,0.10503154]
[1733442221588,0.64092901,96359.0,96327.0,0.10503154]
[1733442221824,0.5346,96343.0,96312.0,0.000834]
[1733442222053,0.15,96344.0,96313.0,1.15670809]
[1733442222054,0.5346,96341.0,96313.0,1.15670809]
[1733442222267,0.10632923,96342.0,96312.0,0.10503154]
[1733442222268,0.6168,96339.0,96312.0,0.10503154]
[1733442222477,0.00129769,96338.0,96313.0,0.516949]
[1733442222681,0.00129769,96338.0,96330.0,0.0008645]
[1733442223348,0.5346,96337.0,96330.0,0.0008645]
[1733442223561,0.00129774,96336.0,96330.0,0.0008645]
[1733442224455,0.00129774,96336.0,96300.0,0.0008649]
[1733442224677,0.5346,96335.0,96301.0,0.83928354]
[1733442224905,0.5346,96333.0,96302.0,0.680442]
[1733442225149,0.00129774,96332.0,96303.0,0.10503154]
[1733442225388,0.5346,96331.0,96304.0,0.648224]
[1733442225641,0.5346,96331.0,96303.0,0.10503154]
[1733442225642,0.15,96326.0,96300.0,0.0008649]
[1733442225856,0.0822,96317.0,96300.0,0.0008649]
[1733442226060,0.00129802,96316.0,96300.0,0.0008649]
[1733442228585,0.08349795,96317.0,96300.0,0.10589644]
[1733442229950,0.00129787,96316.0,96301.0,0.10503154]
[1733442230168,0.18420232,96379.0,96301.0,0.10503154]
[1733442230169,0.5346,96328.0,96302.0,0.023]
[1733442230372,0.5346,96344.0,96312.0,0.10503154]
[1733442230587,0.5346,96344.0,96303.0,0.10503154]
[1733442230588,0.25632916,96343.0,96303.0,0.10503154]
[1733442230799,0.53395425,96342.0,96303.0,0.10503154]
[1733442231030,0.25632925,96341.0,96304.0,0.134554]
[1733442231272,0.25632925,96341.0,96305.0,0.10503154]
[1733442231497,0.15,96337.0,96306.0,0.400733]
[1733442231708,0.53395425,96335.0,96307.0,0.268733]
[1733442231978,0.53525203,96334.0,96307.0,0.37376454]
[1733442232221,0.53395425,96334.0,96308.0,0.680709]
[1733442232394,0.53395425,96334.0,96309.0,0.10503154]
[1733442234144,0.53395425,96341.0,96316.0,1.73215654]
[1733442234382,0.53395425,96358.0,96321.0,0.10503154]
[1733442234621,0.53395425,96357.0,96328.0,0.10503154]
[1733442234824,0.0017302,96340.0,96329.0,1.256883]
[1733442235038,0.0017302,96340.0,96335.0,0.10503154]
[1733442235250,0.0017302,96340.0,96317.0,0.18462317]
[1733442235251,0.0017302,96340.0,96339.0,0.10503154]
[1733442235470,1.41580488,96364.0,96339.0,0.10503154]
[1733442235736,1.41580488,96364.0,96337.0,1.685272]
[1733442235737,1.41580488,96364.0,96349.0,0.10503154]
[1733442235933,1.41580488,96364.0,96350.0,1.704064]
[1733442236140,1.41580488,96364.0,96351.0,0.96773054]
[1733442236386,1.41580488,96364.0,96352.0,0.266157]
[1733442236587,1.41580488,96364.0,96353.0,1.36663554]
[1733442236801,1.41580488,96364.0,96354.0,1.386616]
[1733442237053,1.41580488,96364.0,96355.0,1.33346554]
[1733442237277,1.41580488,96364.0,96356.0,1.260525]
[1733442237479,1.41580488,96364.0,96357.0,0.10503154]
[1733442237682,1.41580488,96364.0,96358.0,0.834804]
[1733442237881,1.41580488,96364.0,96359.0,0.10503154]
[1733442238085,1.41580488,96364.0,96360.0,0.717836]
[1733442238261,1.41580488,96364.0,96361.0,0.10503154]
[1733442239181,1.41580488,96364.0,96362.0,0.300141]
[1733442239413,1.41580488,96364.0,96363.0,0.10503154]
[1733442241258,1.41580488,96364.0,96363.0,0.48463454]
[1733442241469,1.41580488,96364.0,96363.0,0.35263454]
[1733442243240,1.41580488,96364.0,96363.0,0.10503154]
[1733442243502,1.41580488,96364.0,96343.0,0.09235941]
[1733442243702,0.53395425,96362.0,96344.0,0.80710454]
[1733442243906,0.53395425,96362.0,96344.0,0.10503154]
[1733442244807,0.53395425,96362.0,96345.0,0.21222]
[1733442245037,1.41580488,96364.0,96318.0,0.18471882]
[1733442245038,0.53395425,96360.0,96325.0,0.09235941]
[1733442245267,0.00129729,96359.0,96326.0,0.35036254]
[1733442245493,0.53395425,96358.0,96327.0,0.258331]
[1733442245699,0.00129729,96357.0,96328.0,0.10503154]
[1733442245924,0.00129729,96357.0,96329.0,0.385741]
[1733442245925,0.53395425,96354.0,96329.0,0.385741]
[1733442246131,0.68395425,96348.0,96303.0,0.09235941]
[1733442246371,0.0776,96332.0,96303.0,0.10503154]
[1733442246577,0.00129783,96331.0,96303.0,0.10503154]
[1733442246794,0.15,96322.0,96300.0,0.0008649]
[1733442247033,0.15003154,96330.0,96300.0,0.0008649]
[1733442247034,0.53308955,96320.0,96301.0,0.10503154]
[1733442247276,0.00129786,96319.0,96301.0,0.10503154]
[1733442247721,0.53308955,96329.0,96302.0,0.19243]
[1733442247939,0.53308955,96329.0,96303.0,0.10503154]
[1733442248151,0.53308955,96329.0,96304.0,0.518777]
[1733442248362,0.53308955,96329.0,96305.0,0.10503154]
[1733442248577,0.53308955,96329.0,96306.0,0.508956]
[1733442248802,0.53308955,96329.0,96307.0,0.10503154]
[1733442249012,0.53308955,96329.0,96307.0,0.76226854]
[1733442249220,0.53308955,96329.0,96308.0,0.691547]
[1733442249431,0.00129758,96328.0,96309.0,0.10503154]
[1733442249658,0.53308955,96329.0,96309.0,0.10503154]
[1733442249880,0.53308955,96329.0,96310.0,0.507492]
[1733442250085,0.00129763,96328.0,96311.0,0.28322554]
[1733442250302,0.00129763,96328.0,96312.0,0.446457]
[1733442250519,0.00129763,96328.0,96312.0,0.298694]
[1733442250727,0.00129763,96328.0,96300.0,0.0008649]
[1733442250932,0.00129763,96328.0,96301.0,0.10503154]
[1733442251355,0.00129763,96328.0,96302.0,0.198584]
[1733442251581,0.00129763,96328.0,96303.0,0.10503154]
[1733442251824,0.00129763,96328.0,96304.0,0.377774]
[1733442252072,0.00129763,96328.0,96305.0,0.10503154]
[1733442252335,0.53308955,96327.0,96306.0,0.116095]
[1733442252553,0.00129773,96326.0,96307.0,0.10503154]
[1733442252767,0.00129773,96326.0,96308.0,0.399392]
[1733442252974,0.53308955,96327.0,96308.0,0.399392]
[1733442252975,0.53308955,96327.0,96309.0,0.10503154]
[1733442253178,0.53308955,96327.0,96310.0,0.403222]
[1733442253382,0.53308955,96327.0,96311.0,0.10503154]
[1733442253623,0.53308955,96327.0,96311.0,0.31541454]
[1733442253854,0.00129773,96326.0,96311.0,0.10503154]
[1733442255455,0.53308955,96327.0,96311.0,0.10503154]
[1733442257236,0.00129765,96326.0,96311.0,0.10503154]
[1733442257459,0.00129765,96326.0,96300.0,0.0008649]
[1733442257460,0.53308955,96324.0,96300.0,0.0008649]
[1733442257676,0.00129789,96323.0,96300.0,0.10589644]
[1733442257899,0.00129789,96323.0,96310.0,0.0008647]
[1733442259388,0.53308955,96324.0,96310.0,0.0008647]
[1733442259811,0.00129776,96323.0,96310.0,0.0008647]
[1733442261058,0.53308955,96324.0,96310.0,0.0008647]
[1733442261271,0.00129789,96322.0,96310.0,0.0008647]
[1733442262509,0.53308955,96321.0,96310.0,0.0008647]
[1733442262751,0.53438744,96320.0,96310.0,0.0008647]
[1733442263597,0.58178955,96318.0,96310.0,0.0008647]
[1733442263782,0.001298,96317.0,96310.0,0.0008647]
[1733442265087,0.001298,96317.0,96300.0,0.0008649]
[1733442265088,0.0758,96316.0,96300.0,0.0008649]
[1733442265314,0.023,96314.0,96300.0,0.0008649]
[1733442265528,0.00129807,96313.0,96300.0,0.0008649]
[1733442265705,0.00129807,96312.0,96300.0,0.0008649]
[1733442266208,0.53308955,96305.0,96300.0,0.0008649]
[1733442266870,0.00129801,96304.0,96300.0,0.0008649]
[1733442268181,0.53308955,96311.0,96301.0,0.10503154]
[1733442268378,0.53308955,96311.0,96301.0,0.40827154]
[1733442268593,0.53308955,96332.0,96302.0,0.678993]
[1733442268812,0.53308955,96332.0,96301.0,1.619052]
[1733442269021,0.53308955,96332.0,96301.0,1.108547]
[1733442269232,0.53308955,96332.0,96308.0,0.21006308]
[1733442269448,0.53308955,96332.0,96309.0,0.935335]
[1733442269663,0.53308955,96332.0,96310.0,0.10503154]
[1733442269917,0.53308955,96332.0,96311.0,0.929555]
[1733442270138,0.53308955,96332.0,96312.0,0.10503154]
[1733442270342,0.53308955,96332.0,96313.0,0.84557]
[1733442270552,0.53308955,96332.0,96314.0,0.10503154]
[1733442270766,0.53308955,96332.0,96315.0,0.883818]
[1733442270970,0.53308955,96332.0,96316.0,0.10503154]
[1733442271189,0.53308955,96332.0,96317.0,0.883103]
[1733442271399,0.53308955,96336.0,96318.0,0.10503154]
[1733442271612,0.53308955,96335.0,96318.0,0.10503154]
[1733442271835,0.53308955,96335.0,96319.0,0.21536]
[1733442272051,0.53308955,96339.0,96320.0,0.10503154]
[1733442272260,0.0017294,96340.0,96321.0,0.69982554]
[1733442272479,0.0017294,96340.0,96322.0,0.679798]
[1733442272687,0.0017294,96340.0,96323.0,0.10503154]
[1733442272893,0.0017294,96340.0,96323.0,0.52006754]
[1733442273098,0.0017294,96340.0,96323.0,0.10503154]
[1733442273761,0.53308955,96339.0,96323.0,0.10503154]
[1733442275015,0.00129751,96338.0,96323.0,0.10503154]
[1733442275235,0.53308955,96336.0,96323.0,0.10503154]
[1733442275449,0.53308955,96334.0,96302.0,0.09252075]
[1733442275655,0.53308955,96332.0,96303.0,0.32148354]
[1733442275864,0.53308955,96329.0,96304.0,0.176741]
[1733442276077,0.00129768,96328.0,96305.0,0.10503154]
[1733442276744,0.0759,96327.0,96305.0,0.10503154]
[1733442276951,0.53438738,96326.0,96300.0,0.0008649]
[1733442277167,0.53438738,96326.0,96301.0,0.10503154]
[1733442280208,0.0485,96325.0,96301.0,0.10503154]
[1733442280384,0.0012979,96324.0,96301.0,0.10503154]
[1733442280589,0.53308955,96323.0,96300.0,0.0008649]
[1733442280825,0.00129794,96322.0,96300.0,0.0008649]
[1733442281045,0.53308955,96321.0,96300.0,0.0008649]
[1733442281242,0.00129794,96320.0,96300.0,0.0008649]
[1733442281514,0.53308955,96319.0,96300.0,0.0008649]
[1733442281717,0.00129794,96318.0,96300.0,0.0008649]
[1733442281922,0.53308955,96317.0,96300.0,0.0008649]
[1733442282143,0.00129794,96316.0,96300.0,0.0008649]
[1733442284828,0.53308955,96315.0,96300.0,0.0008649]
[1733442285044,0.53438749,96314.0,96300.0,0.0008649]
[1733442288381,0.53308955,96313.0,96300.0,0.0008649]
[1733442288596,0.00129796,96312.0,96300.0,0.0008649]
[1733442290221,0.53308955,96311.0,96300.0,0.0008649]
[1733442290469,0.53308955,96308.0,96300.0,0.0008649]
[1733442290691,0.53308955,96306.0,96300.0,0.0008649]
[1733442291993,0.53308955,96302.0,96300.0,0.0008649]
[1733442292205,0.0012982,96301.0,96300.0,0.0008649]
[1733442292636,0.53308955,96302.0,96300.0,0.0008649]
[1733442293746,0.00129803,96301.0,96300.0,0.0008649]
[1733442294707,0.53308955,96302.0,96300.0,0.0008649]
[1733442296202,0.00129799,96301.0,96300.0,0.0008649]
[1733442296867,0.04789799,96301.0,96300.0,0.0008649]
[1733442297086,0.58098754,96301.0,96300.0,0.0008649]
[1733442297296,0.83472109,96301.0,96300.0,0.0008649]
[1733442297507,0.83472109,96301.0,96280.0,0.0008647]
[1733442297508,0.15,96299.0,96280.0,0.0008647]
[1733442297714,0.55608955,96300.0,96280.0,0.0008647]
[1733442297715,0.53308955,96294.0,96280.0,0.0008647]
[1733442297960,0.15,96291.0,96280.0,0.0008647]
[1733442298165,0.00129841,96290.0,96280.0,0.0008647]
[1733442299001,0.00129834,96293.0,96280.0,0.0008647]
[1733442299217,0.00129834,96292.0,96280.0,0.0008647]
[1733442300103,0.0012982,96293.0,96280.0,0.0008647]
[1733442300317,0.00129829,96292.0,96280.0,0.0008647]
[1733442301411,0.00129833,96291.0,96280.0,0.0008647]
[1733442301628,0.00129833,96293.0,96280.0,0.0008647]
[1733442302080,0.53308955,96294.0,96280.0,0.0008647]
[1733442302502,0.00129829,96293.0,96280.0,0.0008647]
[1733442302717,0.53308955,96294.0,96280.0,0.0008647]
[1733442302929,0.53308955,96294.0,96281.0,0.10503154]
[1733442303151,0.0807,96300.0,96281.0,0.29435154]
[1733442303362,0.00129805,96311.0,96282.0,1.806744]
[1733442303572,0.53308955,96308.0,96283.0,0.68907]
[1733442303773,0.00129816,96307.0,96280.0,0.0008647]
[1733442303981,0.53308955,96304.0,96281.0,0.10503154]
[1733442304198,0.15,96300.0,96281.0,0.10503154]
[1733442304444,0.00129815,96299.0,96282.0,0.10503154]
[1733442304851,0.00129815,96298.0,96282.0,0.10503154]
[1733442304999,0.53308955,96303.0,96282.0,0.10503154]
[1733442305000,0.00129815,96302.0,96282.0,0.10453154]
[1733442306141,0.00129815,96302.0,96283.0,1.145526]
[1733442306316,0.00129811,96302.0,96284.0,0.10503154]
[1733442306935,0.53308955,96303.0,96284.0,0.10503154]
[1733442307143,0.00129811,96302.0,96284.0,0.10503154]
[1733442307806,0.53308955,96303.0,96284.0,0.10503154]
[1733442308552,0.0766,96313.0,96285.0,0.551107]
[1733442308553,0.53308955,96312.0,96285.0,0.551107]
[1733442308760,0.53308955,96312.0,96286.0,0.10503154]
[1733442308973,0.53308955,96312.0,96287.0,1.90435549]
[1733442309179,0.53308955,96312.0,96288.0,1.91658154]
[1733442309376,0.15,96329.0,96288.0,1.91658154]
[1733442309377,0.0766,96327.0,96289.0,1.80633]
[1733442309653,0.53308955,96325.0,96293.0,0.09280549]
[1733442309859,0.53308955,96325.0,96286.0,0.0157]
[1733442309860,0.53308955,96325.0,96296.0,0.09280549]
[1733442310066,0.07462795,96327.0,96298.0,0.09280549]
[1733442310067,0.0999,96302.0,96298.0,0.09280549]
[1733442310274,0.0999,96302.0,96294.0,0.00103823]
[1733442310275,0.53224038,96299.0,96294.0,0.09280549]
[1733442310475,0.52861733,96299.0,96288.0,0.09280549]
[1733442310682,0.52861733,96299.0,96289.0,0.10503154]
[1733442311103,0.52861733,96299.0,96281.0,0.09280549]
[1733442311307,0.52861733,96299.0,96279.0,0.0100713]
[1733442311525,0.15,96298.0,96279.0,0.0100713]
[1733442311726,0.52861733,96299.0,96279.0,0.0100713]
[1733442312027,0.52861733,96299.0,96281.0,0.10503154]
[1733442312241,0.52861733,96299.0,96281.0,0.57060459]
[1733442312452,0.52861733,96299.0,96283.0,0.09280549]
[1733442312655,0.52861733,96299.0,96284.0,0.10503154]
[1733442312870,0.52861733,96299.0,96279.0,0.0100713]
[1733442314616,0.52861733,96299.0,96281.0,0.10503154]
[1733442315038,0.52861733,96299.0,96282.0,0.00103848]
[1733442315249,0.0999,96302.0,96283.0,0.10503154]
[1733442315458,0.0999,96302.0,96284.0,0.72521836]
[1733442315665,0.0017302,96300.0,96286.0,0.13913501]
[1733442315899,0.0017302,96300.0,96288.0,0.13913501]
[1733442316112,0.0017302,96300.0,96285.0,0.18551335]
[1733442316113,0.0017302,96300.0,96289.0,0.10503154]
[1733442316318,0.52861733,96299.0,96279.0,0.0100713]
[1733442316532,0.52861733,96299.0,96281.0,0.10503154]
[1733442317167,0.52861733,96299.0,96282.0,0.00103844]
[1733442317403,0.52861733,96299.0,96279.0,0.0100713]
[1733442317404,0.52861733,96299.0,96283.0,0.10606994]
[1733442317608,0.52861733,96299.0,96283.0,0.10503154]
[1733442317812,0.52861733,96299.0,96286.0,0.13917991]
[1733442318024,0.52861733,96299.0,96287.0,0.48964845]
[1733442318241,0.52861733,96299.0,96291.0,0.13917991]
[1733442318486,0.0017302,96300.0,96292.0,0.55780254]
[1733442318687,0.0017302,96300.0,96293.0,0.561171]
[1733442318915,0.0017302,96300.0,96294.0,0.10503154]
[1733442319135,0.0017302,96300.0,96294.0,0.61482187]
[1733442319346,0.0017302,96300.0,96295.0,0.575894]
[1733442319539,0.0017302,96300.0,96296.0,0.10503154]
[1733442319838,0.0017302,96300.0,96297.0,0.72968]
[1733442320041,0.0017302,96300.0,96299.0,0.13917991]
[1733442320243,0.0017302,96300.0,96299.0,1.79831928]
[1733442320442,0.0017302,96300.0,96299.0,1.42383954]
[1733442320777,0.0999,96302.0,96299.0,0.24429085]
[1733442320778,0.06717078,96302.0,96299.0,0.24429085]
[1733442320982,0.06180788,96302.0,96301.0,0.10503154]
[1733442321190,0.06180788,96302.0,96301.0,2.29279832]
[1733442321373,0.44,96330.0,96302.0,0.023]
[1733442321570,0.44,96330.0,96308.0,0.13927295]
[1733442321782,0.44,96330.0,96309.0,1.97259556]
[1733442321998,0.44,96330.0,96311.0,0.13927352]
[1733442322200,0.44,96330.0,96312.0,2.26408657]
[1733442322409,0.44,96330.0,96315.0,0.09284661]
[1733442322614,0.52861733,96329.0,96315.0,0.09284661]
[1733442322835,0.52861733,96329.0,96296.0,0.27854705]
[1733442322836,0.15,96326.0,96308.0,0.09284661]
[1733442323036,0.15,96326.0,96303.0,0.09284661]